Cogmind - Beta 16 @@@ ROGUE MODE // 2025.12.06 @ 08:33:33 Player: tionichm Result: Destroyed by G-34 Mercenary with Small Laser Performance ------------- Evolutions (0) 0 Regions Visited (1) 200 Robots Destroyed (19) 95 Value Destroyed (473) 473 Prototype IDs (0) 0 Alien Tech Used (0) 0 Bonus (0) 0 TOTAL SCORE: 768 Bonus ------- None Cogmind --------- Core Integrity 0/250 Matter 290/300 Energy 160/160 System Corruption 0% Temperature Warm (190) Movement Flying (117) Ox1 Location -10/Materials Parts ------- > --- POWER (1) -------- Light Nuclear Core > --- PROPULSION (2) --- Flight Unit Flight Unit > --- UTILITY (2) ------ Small Storage Unit Visual Processing Unit > --- WEAPON (2) ------- Small Laser Subdweller Laser > --- INVENTORY (8) ---- Ion Engine Medium Storage Unit Subdweller Optics Terrain Scanner Improved Terrain Scanner Terrain Scan Processor Beam Cannon Mining Laser Peak State ------------ > --- POWER ------------ Light Nuclear Core > --- PROPULSION ------- Aluminum Leg > --- UTILITY ---------- Improved Heat Sink Small Storage Unit > --- WEAPON ----------- Subdweller Laser Beam Cannon > --- INVENTORY -------- Medium Storage Unit Visual Processing Unit Terrain Scanner Improved Terrain Scanner Terrain Scan Processor Small Laser Mining Laser [Rating: 12] Favorites ----------- Power Light Nuclear Core Engine Light Ion Engine Power Core Light Nuclear Core Propulsion Aluminum Leg Leg Aluminum Leg Wheel Wheel Flight Unit Flight Unit Utility Small Storage Unit Device Improved Heat Sink Storage Small Storage Unit Processor Visual Processing Unit Weapon Small Laser Energy Gun Small Laser Energy Cannon Beam Cannon Special Weapon Mining Laser Build | -11 -10 ------- Run | Yrd Mat Slots Evolved . | . . Power . | . . Propulsion . | . . Utility . | . . Weapon . | . . Parts Attached 20 | 8 12 Power 3 | 1 2 Engine 2 | 1 1 Core 1 | . 1 Reactor . | . . Propulsion 7 | 3 4 Treads . | . . Leg 4 | 2 2 Wheel 1 | 1 . Hover . | . . Flight 2 | . 2 Utility 4 | 2 2 Device 2 | 1 1 Storage 1 | 1 . Processor 1 | . 1 Hackware . | . . Protection . | . . Artifact . | . . Weapon 6 | 2 4 Energy Gun 4 | 2 2 Energy Cannon 1 | . 1 Ballistic Gun . | . . Ballistic Cannon . | . . Launcher . | . . Special Weapon 1 | . 1 Impact Weapon . | . . Slashing Weapon . | . . Piercing Weapon . | . . Special Melee Weapon . | . . Unidentified Prototypes . | . . Parts Lost 7 | . 7 Power 1 | . 1 Propulsion 3 | . 3 Utility 1 | . 1 Weapon 2 | . 2 Highest Loss Streak 5 | . 5 To Critical Strikes . | . . Average Backups 6 | 4 7 Power . | . . Propulsion . | 2 . Utility 3 | . 3 Weapon 2 | 1 2 Tool/Special . | . . Unused Backups 8 | . 8 Power 1 | . 1 Propulsion 2 | . 2 Utility 4 | . 4 Weapon 1 | . 1 Tool/Special . | . . Average Slot Usage (%) 93 | . 93 Engine 7 | . 7 Core 6 | . 6 Leg 17 | . 17 Flight 4 | . 4 Device 11 | . 11 Storage 14 | . 14 Processor 2 | . 2 Energy Gun 21 | . 21 Energy Cannon 5 | . 5 Peak Build Rating 12 | 9 12 Average Rating 10 | 5 10 On Entrance 4 | . 9 Avg Prop Armor Cover (%) 16 | 16 . Naked Turns . | . . Heaviest Build 18 | 12 18 Greatest Support 20 | 20 20 Greatest Overweight (x) 5 | . 5 Average Overweight (x) . | . . Largest Inventory Capacity 8 | 8 8 Average Capacity 7 | 7 8 Most Carried 8 | 7 8 Average Carried 6 | 4 7 Final Capacity 8 | 8 8 Final Carried 8 | 6 8 Class Distribution -------------------- 58% | Mutant 41% | Scavenger-Mutant Dominant Class ---------------- Mutant | -10/Materials Resources | -11 -10 ----------- Run | Yrd Mat Matter Collected 415 | 280 135 Remotely . | . . Salvage Created 614 | 96 518 Parts 31 | 6 25 Haulers Intercepted . | . . Recyclers Shooed . | . . Parts Field Recycled . | . . Retrieved Matter . | . . Parts Self-Destructed . | . . Prevented . | . . Parts Restored . | . . Kills | -11 -10 ------- Run | Yrd Mat Combat Hostiles Destroyed 12 | . 12 Guns 12 | . 12 Classes Destroyed 7 | 2 5 Worker 1 | . 1 Tunneler 2 | 2 . Recycler 1 | 1 . Watcher 3 | . 3 Swarmer 2 | . 2 Grunt 7 | . 7 Subdweller 3 | . 3 Best Kill Streak 4 | 2 4 Combat Bots Only 2 | . 2 Max Kills in Single Turn 1 | 1 1 Gunslinging . | . . Exploded . | . . Melee . | . . Uniques/NPCs Destroyed . | . . Combat | -11 -10 -------- Run | Yrd Mat Hostile Shots Fired 112 | . 112 Missed 35 | . 35 Hits 77 | . 77 Projectile 77 | . 77 Critical Strikes 2 | . 2 Damage Taken 1080 | . 1080 Core 250 | . 250 Absorbed by Shields . | . . Core Remaining (%) 100 | 100 . Volleys Fired 60 | 7 53 Largest 2 | 2 2 Hottest 120 | 90 120 Shots Fired 114 | 14 100 Gun 89 | 14 75 Cannon 24 | . 24 Launcher . | . . Special 1 | . 1 Kinetic . | . . Thermal 114 | 14 100 Explosive . | . . Electromagnetic . | . . Robot Hit Streak 7 | 3 7 Robot Miss Streak 3 | 2 3 Penetration Max . | . . Secondary Targets 2 | . 2 Max Gunslinging Chain 1 | . 1 Shots Hit Robots 62 | 8 54 Core Hits 30 | 4 26 Critical Kills . | . . Critical Parts Destroyed . | . . Critical Strikes 3 | . 3 Burn 3 | . 3 Melee Attacks . | . . Impact . | . . Slashing . | . . Piercing . | . . Sneak Attacks . | . . Combat Hostiles . | . . Follow-up Attacks . | . . Damage Inflicted 887 | 95 792 Guns 695 | 95 600 Cannons 192 | . 192 Explosions . | . . Melee . | . . Ramming . | . . Kinetic . | . . Thermal 887 | 95 792 Explosive . | . . Electromagnetic . | . . Impact . | . . Slashing . | . . Piercing . | . . Highest Corruption . | . . Average Corruption . | . . Corruption Purged . | . . Corruption Blocked . | . . Overload Shots . | . . Overflow Damage 8 | . 8 Projectiles 8 | . 8 Explosions . | . . Melee . | . . Knockbacks . | . . Impact . | . . Kinetic . | . . Secondary . | . . Self-Inflicted Damage . | . . Shots . | . . Rammed . | . . Targets Rammed . | . . Kicked . | . . Crushed . | . . Highest Temperature 264 | 120 264 Average Temperature 55 | 47 58 Received Heat Transfer 285 | . 285 Siege Activations . | . . Martial Activations . | . . Shielding Activations . | . . Robots Disrupted . | . . Combat Hostiles . | . . Robots Corrupted . | . . Combat Hostiles . | . . Parts Fried . | . . Impact Corruptions . | . . Robots Melted . | . . Combat Hostiles . | . . Parts Melted 7 | . 7 Heat Transferred 2268 | 260 2008 Parts Sabotaged . | . . Parts Stolen . | . . Parts Stripped . | . . Power Chain Reactions . | . . Alert | -11 -10 ------- Run | Yrd Mat Maximum Alert Level . | . . Low Security (%) 100 | 100 100 Level 1 . | . . Level 2 . | . . Level 3 . | . . Level 4 . | . . Level 5 . | . . High Security . | . . Max Security . | . . Peak Influence 84 | 10 84 Initial . | . . Average 15 | . 17 Influence Increases 316 | 15 301 Destroy 0b10 Robot/C 180 | . 180 Destroy 0b10 Robot/NC 35 | 15 20 Destroy Leader 66 | . 66 Successful Hack 18 | . 18 Destroy Structure 2 | . 2 Lose Combat Pursuer 15 | . 15 Influence Decreases 266 | 15 251 Time Decay 261 | 15 246 Lost Part 5 | . 5 Squads Dispatched 3 | . 3 Investigation 1 | . 1 Extermination . | . . Reinforcement 2 | . 2 Assault . | . . Garrison . | . . Intercept . | . . Searches Triggered . | . . Construction Impeded . | . . Haulers Reinforced . | . . Active Scanning Responses . | . . Cargo Convoy Interrupts . | . . Stealth | -11 -10 --------- Run | Yrd Mat Distress Signals 2 | . 2 Communications Jammed . | . . Distress Signals . | . . Times Spotted 23 | . 23 Peak Tracking Total 4 | . 4 Tactical Retreats 1 | . 1 Traps | -11 -10 ------- Run | Yrd Mat Traps Triggered 2 | . 2 Indirectly . | . . Trap Hack Attempts . | . . Triggered . | . . Disarmed . | . . Reprogrammed . | . . Reused . | . . Traps Extracted . | . . Installed . | . . Triggered . | . . Machines | -11 -10 ---------- Run | Yrd Mat Machines Disabled . | . . Max in Single Turn . | . . Machines Repaired . | . . Machines Dismantled . | . . Machines Sabotaged . | . . Overloaded Fab Kills . | . . Hacking | -11 -10 --------- Run | Yrd Mat Machines Accessed 5 | . 5 Terminals 4 | . 4 Fabricators . | . . Repair Stations . | . . Recycling Units 1 | . 1 Scanalyzers . | . . Garrison Access . | . . Total Hacks 23 | . 23 Successful 14 | . 14 Failed 9 | . 9 Catastrophic . | . . Database Lockouts . | . . Manual 1 | . 1 Terminals 19 | . 19 Fabricators . | . . Repair Stations . | . . Recycling Units 4 | . 4 Scanalyzers . | . . Garrison Access . | . . Terminal Hacks 13 | . 13 Record 3 | . 3 Alert Level 3 | . 3 Locate Traps 1 | . 1 Dispatch Records 2 | . 2 Transport Status 1 | . 1 Zone Layout 3 | . 3 Fabricator Hacks . | . . Repair Station Hacks . | . . Recycling Unit Hacks 1 | . 1 Report Inventory 1 | . 1 Scanalyzer . | . . Garrison Access Hacks . | . . Unauthorized Hacks . | . . Terminals . | . . Fabricators . | . . Repair Stations . | . . Recycling Units . | . . Scanalyzers . | . . Garrison Access . | . . Data Cores Recovered . | . . Used . | . . Hacking Detections 4 | . 4 Full Trace Events 2 | . 2 Feedback Events . | . . Feedback Blocked . | . . Robot Schematics Acquired . | . . Robots Built . | . . Authchips . | . . Time . | . . Total Robot Build Rating . | . . Part Schematics Acquired . | . . Parts Built . | . . Authchips . | . . Time . | . . Total Part Build Rating . | . . Part Studies Acquired . | . . Parts Repaired . | . . Time . | . . Parts Recycled . | . . Recycled Matter . | . . Retrieved Matter . | . . Retrieved Components . | . . Parts Scanalyzed . | . . Part Schematics Acquired . | . . Parts Damaged . | . . Bothacking | -11 -10 ------------ Run | Yrd Mat Used RIF Installer . | . . Robots Hacked . | . . Non-combat . | . . Combat . | . . Robot Hacks Applied . | . . Relay Couplers Released . | . . Fabnet Peak Effective % . | . . Robots Rewired . | . . Allies Hacked . | . . Hacks Repelled . | . . Allies | -11 -10 -------- Run | Yrd Mat Total Allies . | . . Largest Group . | . . Highest-Rated Group . | . . Highest-Rated Ally . | . . Total Orders . | . . Ally Attacks . | . . Total Damage . | . . Kills . | . . Allies Corrupted . | . . Allies Melted . | . . Intel | -11 -10 ------- Run | Yrd Mat Active Infowar (turns) 476 | 37 439 Optics 252 | . 252 Terrain 224 | 37 187 Robot Analysis Total . | . . Derelict Logs Recovered . | . . Drone Launches . | . . Drone Recoveries . | . . Exploration | -11 -10 ------------- Run | Yrd Mat Turns Passed 1431 | 135 1296 Spaces Moved 835 | 98 737 Core 60 | 41 19 Treads . | . . Legs 654 | 57 597 Wheels . | . . Hover . | . . Flight 121 | . 121 Fastest Speed 50 | 50 117 Average Speed 138 | 90 144 Slowest Speed 360 | 120 360 Overloaded Moves . | . . Propulsion Burnouts . | . . Robots Hopped . | . . Potential Cave-ins . | . . Cave-ins Triggered . | . . Exploration Rate (%) 44 | 4 84 Regions Visited 1 Branch Regions . Pre-discovered Areas . | . . Known Exits Taken . | . . Unknown Exits Taken 1 | 1 . Scrap Searched . | . . Spaces Dug 1 | . 1 Terrain Destroyed 1 | . 1 Melee . | . . Projectile 1 | . 1 AOE . | . . Terrain Rammed . | . . Walls Destroyed . | . . Machines Disabled . | . . Actions | -11 -10 --------- Run | Yrd Mat Total 1002 | 132 870 Wait 36 | . 36 Move 834 | 97 737 Hop . | . . Pick Up 36 | 16 20 Fast Attach . | . . Attach 18 | 8 10 Detach 1 | 1 . Swap 6 | . 6 Drop 11 | 3 8 Fire 60 | 7 53 Melee . | . . Ram . | . . Kick . | . . Crush . | . . Escape Stasis . | . . Rewire . | . . Trap . | . . Miscellaneous . | . . Route ------- -11/Scrapyard -10/Materials (discovered 4 exits: [*Mat x3] / [*Min]) History --------- Turn | Location | Event 18 | -11/Scrapyard | Discovered new exit (range 15) 136 | -11/Scrapyard | Entered Materials 239 | -10/Materials | Discovered new exit (range 4) 317 | -10/Materials | Build established: Mutant 473 | -10/Materials | Discovered new exit (range 15) 490 | -10/Materials | Discovered new exit (range 15) 736 | -10/Materials | Derelicts attacked the area 745 | -10/Materials | Discovered new exit (range 7) 790 | -10/Materials | Core integrity fell below 50% 831 | -10/Materials | Lost 5 parts (1p2n2w) 1077 | -10/Materials | Build established: Scavenger-Mutant 1423 | -10/Materials | Core integrity fell below 20% 1432 | -10/Materials | Destroyed by G-34 Mercenary with Small Laser Last Messages --------------- 01229_ O-16 Technician: "IFF HANDSHAKE FAILED. SECURING TERMINAL." 01234_ ALERT: Hostiles spotted, dispatching reinforcements to Terminal M004. 01235_ Acquired Flight Unit. 01253_ Acquired 6 matter. 01273_ G-34 Mercenary destroyed. 01286_ Acquired 4 matter. 01286_ U-05 Engineer builds a Door. 01294_ Acquired Ion Engine. 01298_ R-06 Scavenger collects Heat Sink. 01303_ R-06 Scavenger collects Sml. Laser. 01354_ Acquired 10 matter. 01355_ U-05 Engineer builds a Wall. 01402_ Connecting with Recycling Unit... 01402_ ALERT: Suspicious activity at Recycling Unit M001. Dispatching Investigation squad. 01430_ G-34 Mercenary destroyed. 01430_ Switching to secondary target: G-34 Mercenary. Map ----- +----------------------------------------------------+ | | | | | | | | | | | | | | | | | | | | | | | | | | | ???##########################?????????????????? | | ???# """"" # """"" #?????????????????? | | ???# ""T"" # % ""T"" #??????????????#### | | ???# """"" # #??????????????# | | ???# """"" # #??????????????# | | ???# """"" # / ################ | | ???# ######+###### = # # | | ???###### ######## #???# # < # | | ???????# ## ## g##### # # | | ???????# ## "" ## g + + + | | ???????## # ## Y" ## *%##### """ ""# # | | ???????#### ## "" ### ##???# """ T"# # | | ??????????# ## #?#@ #????# """ ""# #### | | ??????????# ## ! #?# #????# # #### | | ?????????## ## #?# ################ # | | ?????????# ##+##### ## #?# # "" | | ?????????# % ## """"" #?# %+ "" | | ?????????# ## """"""""" #?# # "" | | ?????????# ####### ## """ """ #?# %# | | ?????????############ % ## ###%% #### | | ?????????# # ###+########## % ### | | ?????????# """ """ # ^ % &!% #! | | ?????????# """ """ + % ! # | | ?????????# """ """ # % # | | ?????????# # ##########+### # | | ?????????# ## ########## ### ## | | ?????????# "T" ## # # #?# ## | | ?????????# ## # """ #?????# ## | | ?????????############ + """ #?????# ## | | ????????????????????# # """ #?????# ## " | | ????????????????????# # #?????# ## " | | ????????????????????# # """ #?????# ## " | | ????################# # """ #?????# #### | | ????# # """ !#?????# #??? | | ????# < ^ ^ # #?????# #??? | | ????# ^ """ ############???# #??? | | ????###### """ "T" #???????# ?? #??? | +----------------------------------------------------+ Best States ------------- Heat Dissipation 39 Energy Generation 14 Energy Capacity 250 Matter Stores 300 Matter Capacity 300 Sight Range 18 Terrain Scan Range 16 Terrain Scan Density 10 Evasion (%) 55 Item Schematics ----------------- None Robot Schematics ------------------ None Fabricated ------------ Nothing Repaired ---------- Nothing Studied --------- None Alien Tech Used ----------------- None Achievements -------------- DATA ERROR: Steam Global Achievement% Organ Harvest Spot Them First There's More Where That Came From Challenges ------------ None Game ------ Seed PlatingJunkChainsword Manual? 0 Play Time 00:23:16 Cumulative 16.8 hours Start 2025.12.06 @ 08:11:02 End 2025.12.06 @ 08:33:33 Sessions 1 Manual Loads 0 Difficulty Rogue Special Mode None Game No. 45 Rogue 45 Adventurer 0 Explorer 0 Win Type - Total 0 Types 0/0/0/0/0/0/0/0/0/0 Lore% 5 Gallery% 15 Achievement% 10 Wizard Run 0 Options --------- Layout 1 ASCII 0 Keyboard 1 Movement Numpad Keybinds 0 Fullscreen 1 Font 32/SmallcapsGlow Map View 50x40 Zoom Use 0% Tactical HUD 1 Map Filters NONE Filters NONE Steam 1 RUN: 2843387c-b6cd-4ac4-8d49-c441a00c0c45